fUST/lending_fUST_20250430
["ID","MTS","AMOUNT","RATE_DAILY","PERIOD"]
[359411750,1745995753102,-250.0,0.00028063,2]
[359411751,1745995753126,-4410.8278615,0.0002834,2]
[359411752,1745995753148,-20572.07427621,0.00029006,2]
[359411753,1745995757233,-2052.47105829,0.00029006,2]
[359411754,1745995757289,-216.0,0.0003,120]
[359411755,1745995757340,-869.39166974,0.00030035,2]
[359411756,1745995757396,-500.0,0.00030135,2]
[359411757,1745995757448,-414.17450529,0.00030135,2]
[359411758,1745995757500,-430.35216034,0.00030135,2]
[359411759,1745995757560,-500.0,0.00030135,2]
[359411760,1745995757619,-500.0,0.00030135,2]
[359411761,1745995757678,-500.0,0.00030135,2]
[359411762,1745995757737,-221.48102223,0.00030135,2]
[359411763,1745995757796,-500.0,0.00030135,2]
[359411764,1745995757859,-500.0,0.00030135,2]
[359411765,1745995757917,-500.0,0.00030135,2]
[359411766,1745995757974,-500.0,0.00030135,2]
[359411767,1745995758026,-1174.13145068,0.00030135,2]
[359411768,1745995758082,-283.00899742,0.00030136,2]
[359411769,1745995758134,-273.33,0.00030136,5]
[359411770,1745995758185,-166.34367282,0.00030136,5]
[359411771,1745995758236,-400.0,0.00030136,5]
[359411772,1745995758286,-400.0,0.00030136,5]
[359411773,1745995758336,-400.0,0.00030136,5]
[359411774,1745995758386,-400.0,0.00030136,5]
[359411775,1745995758434,-400.0,0.00030136,5]
[359411776,1745995758485,-407.14,0.00030136,5]
[359411777,1745995758534,-400.0,0.00030136,5]
[359411778,1745995758583,-400.0,0.00030136,5]
[359411779,1745995758635,-400.0,0.00030136,5]
[359411780,1745995758691,-400.0,0.00030136,5]
[359411781,1745995758741,-395.7984281,0.00030136,5]
[359411782,1745995758790,-400.0,0.00030136,5]
[359411783,1745995758836,-400.0,0.00030136,5]
[359411784,1745995758883,-431.21,0.00030136,5]
[359411785,1745995758937,-400.0,0.00030136,5]
[359411786,1745995758985,-454.31,0.00030136,5]
[359411787,1745995759036,-783.87,0.00030136,5]
[359411788,1745995759081,-735.92,0.00030136,5]
[359411789,1745995759130,-400.0,0.00030136,5]
[359411790,1745995759184,-400.0,0.00030136,5]
[359411791,1745995759239,-400.0,0.00030136,5]
[359411792,1745995759297,-400.0,0.00030136,5]
[359411793,1745995759351,-400.0,0.00030136,5]
[359411794,1745995759408,-400.0,0.00030136,5]
[359411795,1745995759462,-1089.85,0.00030136,5]
[359411796,1745995759517,-400.0,0.00030136,5]
[359411797,1745995759568,-400.0,0.00030136,5]
[359411798,1745995759618,-400.0,0.00030136,5]
[359411799,1745995759664,-400.0,0.00030136,5]
[359411800,1745995759711,-400.0,0.00030136,5]
[359411801,1745995759758,-400.0,0.00030136,5]
[359411802,1745995759805,-400.0,0.00030136,5]
[359411803,1745995759853,-1975.41,0.00030136,5]
[359411804,1745995759898,-400.0,0.00030136,5]
[359411805,1745995759946,-585.26,0.00030136,5]
[359411806,1745995759994,-437.51,0.00030136,5]
[359411807,1745995760043,-400.0,0.00030136,5]
[359411808,1745995760091,-400.0,0.00030136,5]
[359411809,1745995760139,-400.0,0.00030136,5]
[359411810,1745995760189,-400.0,0.00030136,5]
[359411811,1745995760242,-897.03,0.00030136,5]
[359411812,1745995760292,-207.91695047,0.00030136,5]
[359411813,1745995760346,-400.0,0.00030136,5]
[359411814,1745995760397,-400.0,0.00030136,5]
[359411815,1745995760448,-594.31,0.00030136,5]
[359411816,1745995760513,-400.0,0.00030136,5]
[359411817,1745995760569,-400.0,0.00030136,5]
[359411818,1745995760622,-411.68,0.00030136,5]
[359411819,1745995760673,-1007.44,0.00030136,5]
[359411820,1745995760727,-400.0,0.00030136,5]
[359411821,1745995760778,-320.34177882,0.00030136,5]
[359411822,1745995760826,-1786.3,0.00030136,5]
[359411823,1745995760874,-400.0,0.00030136,5]
[359411824,1745995760920,-400.0,0.00030136,5]
[359411825,1745995760966,-400.0,0.00030136,5]
[359411826,1745995761011,-400.0,0.00030136,5]
[359411827,1745995761059,-2288.94,0.00030136,5]
[359411828,1745995761105,-668.64,0.00030136,5]
[359411829,1745995761154,-400.0,0.00030136,5]
[359411830,1745995761202,-400.0,0.00030136,5]
[359411831,1745995761250,-400.0,0.00030136,5]
[359411832,1745995761294,-3331.34,0.00030136,5]
[359411833,1745995761341,-400.0,0.00030136,5]
[359411834,1745995761387,-400.0,0.00030136,5]
[359411835,1745995761433,-400.0,0.00030136,5]
[359411836,1745995761482,-285.19,0.00030136,5]
[359411837,1745995761732,-400.0,0.00030136,5]
[359411838,1745995761786,-400.0,0.00030136,5]
[359411839,1745995761835,-400.0,0.00030136,5]
[359411840,1745995761883,-531.66,0.00030136,5]
[359411841,1745995761928,-233.77280601,0.00030136,5]
[359411842,1745995761975,-222.14,0.00030136,5]
[359411843,1745995762023,-400.0,0.00030136,5]
[359411844,1745995762077,-644.73,0.00030136,5]
[359411845,1745995762127,-644.73,0.00030136,5]
[359411846,1745995762178,-439.64,0.00030136,5]
[359411847,1745995762226,-400.0,0.00030136,5]
[359411848,1745995762274,-400.0,0.00030136,5]
[359411849,1745995762323,-400.0,0.00030136,5]
[359411850,1745995762377,-400.0,0.00030136,5]
[359411851,1745995762429,-400.0,0.00030136,5]
[359411852,1745995762479,-376.85,0.00030136,5]
[359411853,1745995762531,-498.99,0.00030136,5]
[359411854,1745995762581,-1072.33,0.00030136,5]
[359411855,1745995762632,-400.0,0.00030136,5]
[359411856,1745995762685,-400.0,0.00030136,5]
[359411857,1745995762732,-635.36,0.00030136,5]
[359411858,1745995762785,-500.0,0.00030136,5]
[359411859,1745995762832,-400.0,0.00030136,5]
[359411860,1745995762882,-613.5,0.00030136,5]
[359411861,1745995762934,-613.5,0.00030136,5]
[359411862,1745995762983,-500.0,0.00030136,5]
[359411863,1745995763036,-400.0,0.00030136,5]
[359411864,1745995763087,-440.41674618,0.00030136,5]
[359411865,1745995763138,-454.85,0.00030136,5]
[359411866,1745995763191,-200.66,0.00030136,5]
[359411867,1745995763242,-400.0,0.00030136,5]
[359411868,1745995763296,-754.2,0.00030136,5]
[359411869,1745995763357,-754.2,0.00030136,5]
[359411870,1745995763415,-506.39611456,0.00030136,5]
[359411871,1745995763472,-400.0,0.00030136,5]
[359411872,1745995763526,-400.0,0.00030136,5]
[359411873,1745995763585,-400.0,0.00030136,5]
[359411874,1745995763643,-247.4,0.00030136,5]
[359411875,1745995763699,-351.87,0.00030136,5]
[359411876,1745995763759,-1391.05,0.00030136,5]
[359411877,1745995763826,-1391.05,0.00030136,5]
[359411878,1745995763890,-200.89006624,0.00030136,5]
[359411879,1745995763944,-171.76,0.00030136,5]
[359411880,1745995763995,-400.0,0.00030136,5]
[359411881,1745995764047,-500.0,0.00030136,5]
[359411882,1745995764100,-400.0,0.00030136,5]
[359411883,1745995764155,-400.0,0.00030136,5]
[359411884,1745995764204,-199.10250945,0.00030136,5]
[359411885,1745995764257,-456.32,0.00030136,5]
[359411886,1745995764310,-436.69731326,0.00030136,5]
[359411887,1745995764360,-400.0,0.00030136,5]
[359411888,1745995764413,-400.0,0.00030136,5]
[359411889,1745995764467,-213.3,0.00030136,5]
[359411890,1745995764523,-1718.8,0.00030136,5]
[359411891,1745995764576,-331.19,0.00030136,5]
[359411892,1745995764630,-400.0,0.00030136,5]
[359411893,1745995764684,-400.0,0.00030136,5]
[359411894,1745995764739,-400.0,0.00030136,5]
[359411895,1745995764793,-967.2,0.00030136,5]
[359411896,1745995764840,-457.56,0.00030136,5]
[359411897,1745995764892,-670.04,0.00030136,5]
[359411898,1745995764943,-418.34,0.00030136,5]
[359411899,1745995764997,-670.04,0.00030136,5]
[359411900,1745995765048,-4065.61,0.00030136,5]
[359411901,1745995765098,-4065.61,0.00030136,5]
[359411902,1745995765154,-400.0,0.00030136,5]
[359411903,1745995765209,-505.48,0.00030136,5]
[359411904,1745995765264,-302.09,0.00030136,5]
[359411905,1745995765319,-400.0,0.00030136,5]
[359411906,1745995765375,-400.0,0.00030136,5]
[359411907,1745995765425,-400.0,0.00030136,5]
[359411908,1745995765479,-400.0,0.00030136,5]
[359411909,1745995765536,-400.0,0.00030136,5]
[359411910,1745995765590,-400.0,0.00030136,5]
[359411911,1745995765644,-456.08,0.00030136,5]
[359411912,1745995765697,-456.08,0.00030136,5]
[359411913,1745995765749,-259.45841947,0.00030136,5]
[359411914,1745995765959,-196.62158053,0.00030136,5]
[359411915,1745995765981,-400.0,0.00030136,5]
[359411916,1745995766265,400.0,0.00030136,5]
[359411917,1745995766304,400.0,0.00030136,5]
[359411918,1745995766527,400.0,0.00030136,5]
[359411919,1745995766646,507.07,0.00030136,5]
[359411920,1745995770190,965.47,0.00030136,5]
[359411921,1745995770218,400.0,0.00030136,5]
[359411922,1745995770283,159.44,0.00030114,2]
[359411923,1745995770322,400.0,0.00030136,5]
[359411924,1745995770414,965.47,0.00030136,5]
[359411925,1745995770442,531.01723028,0.00030136,5]
[359411926,1745995776806,400.0,0.00030136,5]
[359411927,1745995777046,400.0,0.00030136,5]
[359411928,1745995777291,522.34999109,0.00030136,5]
[359411929,1745995780065,52.19362902,0.00030136,5]
[359411930,1745995780087,347.80637098,0.00030136,5]
[359411931,1745995781486,380.39,0.00030136,5]
[359411932,1745995782857,400.0,0.00030136,5]
[359411933,1745995784208,400.0,0.00030136,5]
[359411934,1745995784457,250.88,0.00030136,5]
[359411935,1745995785277,384.72,0.00030136,5]
[359411936,1745995787772,400.0,0.00030136,5]
[359411937,1745995788048,200.0,0.00030136,5]
[359411938,1745995788185,400.0,0.00030136,5]
[359411939,1745995791672,400.0,0.00030136,5]
[359411940,1745995791923,400.0,0.00030136,5]
[359411941,1745995792200,400.0,0.00030136,5]
[359411942,1745995793226,541.62297865,0.00030136,5]
[359411943,1745995794732,2193.57,0.00030136,5]
[359411944,1745995794979,2193.57,0.00030136,5]
[359411946,1745995799629,400.0,0.00030136,5]
[359411947,1745995799762,832.28,0.00030136,5]
[359411948,1745995800217,400.0,0.00030136,5]
[359411949,1745995800455,209.76448945,0.00030136,5]
[359411957,1745995806368,268.51214106,0.00030136,5]
[359411958,1745995808186,400.0,0.00030136,5]
[359411959,1745995808487,400.0,0.00030136,5]
[359411960,1745995808738,400.0,0.00030136,5]
[359411961,1745995808822,405.12497356,0.00030136,5]
[359411962,1745995809944,383.34,0.00030136,5]
[359411963,1745995810091,250.0,0.00028063,2]
[359411964,1745995810701,402.8089133,0.00030136,5]
[359411965,1745995811675,399.56432562,0.00030136,5]
[359411966,1745995812046,400.0,0.00030136,5]
[359411967,1745995812302,353.21,0.00030136,5]
[359411968,1745995813299,400.0,0.00030136,5]
[359411969,1745995814602,400.0,0.00030136,5]
[359411970,1745995815205,400.0,0.00030136,5]
[359411971,1745995817073,400.0,0.00030136,5]
[359411972,1745995817414,484.98256854,0.00030136,5]
[359411973,1745995821050,500.0,0.00030135,2]
[359411974,1745995821560,400.0,0.00030136,5]
[359411975,1745995821587,487.78,0.00030136,5]
[359411976,1745995821791,400.0,0.00030136,5]
[359411977,1745995822027,400.0,0.00030136,5]
[359411978,1745995822095,500.0,0.00030136,5]
[359411979,1745995822275,328.86,0.00030136,5]
[359411980,1745995823425,400.0,0.00030136,5]
[359411981,1745995823665,400.0,0.00030136,5]
[359411982,1745995823907,400.0,0.00030136,5]
[359411983,1745995825821,3192.54,0.00030136,5]
[359411984,1745995826053,3192.54,0.00030136,5]
[359411985,1745995829087,1501.72,0.00030136,5]
[359411986,1745995829508,400.0,0.00030136,5]
[359411987,1745995829757,400.0,0.00030136,5]
[359411988,1745995830037,205.64654098,0.00030136,5]
[359412006,1745995831854,400.0,0.00030136,5]
[359412012,1745995831905,-355.3686306,0.00030839,2]
[359412014,1745995831915,-355.36863059,0.00030841,2]
[359412016,1745995831924,-130.11535213,0.00030843,2]
[359412018,1745995831936,-225.25327846,0.00030843,2]
[359412020,1745995831946,-241.84602153,0.00030845,2]
[359412021,1745995832134,400.0,0.00030136,5]
[359412022,1745995832408,200.0,0.00030136,5]
[359412023,1745995832875,976.62,0.00030136,5]
[359412024,1745995834238,400.0,0.00030136,5]
[359412025,1745995834311,400.0,0.00030136,5]
[359412026,1745995835433,200.0,0.00030136,5]
[359412027,1745995836187,245.96010825,0.00030136,5]
[359412055,1745995837958,-154.03989175,0.00030136,5]
[359412056,1745995837967,-400.0,0.00030136,5]
[359412057,1745995837977,-400.0,0.00030136,5]
[359412058,1745995837987,-548.94,0.00030136,5]
[359412059,1745995837996,-113.52260906,0.00030845,2]
[359412060,1745995838005,-355.36863059,0.00030847,2]
[359412061,1745995838015,-456.08,0.00030857,5]
[359412062,1745995838024,-151.0,0.000309,13]
[359412063,1745995838042,-261.33353538,0.00030902,2]
[359412064,1745995838052,-1600.0,0.00030935,2]
[359412066,1745995838061,-400.0,0.00030936,5]
[359412067,1745995838071,-400.0,0.00030936,5]
[359412069,1745995838081,-400.0,0.00030936,5]
[359412071,1745995838093,-400.0,0.00030936,5]
[359412073,1745995838103,-400.0,0.00030936,5]
[359412075,1745995838112,-400.0,0.00030936,5]
[359412077,1745995838122,-456.08,0.00030936,5]
[359412079,1745995838133,-400.0,0.00030936,5]
[359412081,1745995838145,-504.74336123,0.00030936,5]
[359412083,1745995838154,-206.67779911,0.00030936,5]
[359412085,1745995838165,-400.0,0.00030936,5]
[359412087,1745995838174,-400.0,0.00030936,5]
[359412089,1745995838184,-400.0,0.00030936,5]
[359412091,1745995838193,-519.1821753,0.00030936,5]
[359412093,1745995838203,-400.0,0.00030936,5]
[359412095,1745995838212,-400.0,0.00030936,5]
[359412097,1745995838221,-470.5439717,0.00030936,2]
[359412099,1745995838230,-500.0,0.00030936,2]
[359412101,1745995838239,-24436.61566758,0.00030937,2]
[359412351,1745995840542,-772.79413623,0.00030937,2]
[359412353,1745995840556,-493.28256153,0.00030937,2]
[359412617,1745995843195,-400.0,0.00030136,5]
[359412619,1745995843206,-244.83801744,0.00030136,5]
[359412621,1745995843215,-106.35007047,0.00030136,5]
[359412910,1745995845997,-293.64992953,0.00030136,5]
[359412912,1745995846007,-400.0,0.00030136,5]
[359412914,1745995846022,-400.0,0.00030136,5]
[359412915,1745995846031,-55.69417802,0.00030136,5]
[359413075,1745995851105,190.425859,0.00029737,2]
[359413076,1745995860366,1610.64875645,0.00025205,2]
[359413095,1745996525106,401.65114902,0.00027397,60]
[359413106,1745996732094,-197.03088195,0.00027397,2]
[359413108,1745996826083,-121.40740005,0.00027397,2]
[359413109,1745996826103,-250.0,0.00027963,2]
[359413110,1745996826124,-294.043627,0.00028675,2]
[359413111,1745996826144,-218.212292,0.00028717,2]
[359413112,1745996826164,-216.29874697,0.00028919,2]
[359413113,1745996826236,-3439.88134293,0.00028919,2]
[359413114,1745996826299,-218.36637992,0.000293,2]
[359413115,1745996826364,-6.99542103,0.00029335,2]
[359413116,1745996828105,-778.49632201,0.00029335,2]
[359413117,1745996830089,-414.50825696,0.00029335,2]
[359413118,1745996830109,-151.0,0.00029336,2]
[359413119,1745996830132,-28.72373303,0.00029336,2]
[359413120,1745996842097,-178.67626697,0.00029336,2]
[359413121,1745996842119,-661.50084127,0.00029933,2]
[359413122,1745996852305,-175.26972401,0.00029933,2]
[359413123,1745996954272,-190.912495,0.00029019,2]
[359413124,1745996954322,-218.36637992,0.000293,2]
[359413125,1745996954373,-91.22151078,0.00029933,2]
[359413126,1745996954426,-191.22051774,0.00030026,2]
[359413127,1745996954477,-3693.44,0.0003003,2]
[359413128,1745996954530,-400.0,0.00030031,2]
[359413129,1745996954586,-419.49850823,0.00030032,2]
[359413130,1745996954645,-500.0,0.00030032,2]
[359413131,1745996954702,-500.0,0.00030032,2]
[359413132,1745996954762,-348.45940835,0.00030032,2]
[359413133,1745996954812,-322.0,0.00030032,2]
[359413134,1745996954863,-429.0,0.00030033,2]
[359413135,1745996954912,-50000.0,0.00030033,2]
[359413136,1745996954962,-300.0,0.00030033,2]
[359413137,1745996955014,-158.24,0.00030034,2]
[359413138,1745996955068,-1110.59408468,0.00030034,2]
[359413139,1745996955120,-191.22051774,0.00030036,2]
[359413140,1745996955174,-628.45824687,0.00030042,2]
[359413141,1745996955223,-151.0,0.000301,19]
[359413142,1745996955272,-151.0,0.000301,16]
[359413143,1745996955325,-163.0,0.00030116,3]
[359413144,1745996955381,-1230.0,0.00030123,5]
[359413145,1745996955434,-377.24984339,0.00030125,2]
[359413146,1745996955487,-500.0,0.00030125,2]
[359413147,1745996955539,-310.13189273,0.00030125,2]
[359413148,1745996955594,-157.8410531,0.00030125,2]
[359413149,1745996955644,-21781.9584965,0.00030125,3]
[359413150,1745996955695,-12584.55399671,0.00030125,3]
[359413151,1745996955751,-421.37435881,0.00030125,3]
[359413152,1745996955802,-160.0,0.00030125,3]
[359413153,1745996955853,-840.90604152,0.00030125,3]
[359413154,1745996955902,-160.0,0.00030125,3]
[359413155,1745996955952,-160.0,0.00030125,3]
[359413156,1745996956000,-160.0,0.00030125,3]
[359413157,1745996956050,-160.0,0.00030125,3]
[359413158,1745996956100,-287647.29878,0.00030126,2]
[359413159,1745996956153,-1041.7862226,0.00030126,2]
[359413160,1745996956201,-400.0,0.00030136,5]
[359413161,1745996956248,-400.0,0.00030136,5]
[359413162,1745996956293,-200.0,0.00030136,5]
[359413163,1745996956345,-400.0,0.00030136,5]
[359413164,1745996956394,-400.0,0.00030136,5]
[359413165,1745996956443,-400.0,0.00030136,5]
[359413166,1745996956496,-400.0,0.00030136,5]
[359413167,1745996956546,-244.49046076,0.00030136,5]
[359413168,1745996956595,-313.81856061,0.00030136,5]
[359413169,1745996961126,-86.18143939,0.00030136,5]
[359413170,1745996961148,-400.0,0.00030136,5]
[359413171,1745996961169,-400.0,0.00030136,5]
[359413172,1745996961190,-300.71693523,0.00030136,2]
[359413173,1745996961212,-400.0,0.00030136,5]
[359413174,1745996961234,-400.0,0.00030136,5]
[359413175,1745996961257,-400.0,0.00030136,5]
[359413176,1745996961278,-400.0,0.00030136,5]
[359413177,1745996961300,-400.0,0.00030136,5]
[359413178,1745996961321,-413.54989375,0.00030136,5]
[359413179,1745996961342,-400.0,0.00030136,5]
[359413180,1745996961363,-400.0,0.00030136,5]
[359413181,1745996961384,-400.0,0.00030136,5]
[359413182,1745996961404,-400.0,0.00030136,5]
[359413183,1745996961425,-400.0,0.00030136,5]
[359413184,1745996961444,-508.51641077,0.00030136,5]
[359413185,1745996961465,-400.0,0.00030136,5]
[359413186,1745996961486,-400.0,0.00030136,5]
[359413187,1745996961507,-400.0,0.00030136,5]
[359413188,1745996961528,-202.01324584,0.00030136,5]
[359413189,1745996961549,-400.0,0.00030136,5]
[359413190,1745996961571,-400.0,0.00030136,5]
[359413191,1745996961592,-400.0,0.00030136,5]
[359413192,1745996961613,-409.15606902,0.00030136,5]
[359413193,1745996961635,-400.0,0.00030136,5]
[359413194,1745996961656,-400.0,0.00030136,5]
[359413195,1745996961678,-303.65682888,0.00030136,5]
[359413196,1745996961701,-400.0,0.00030136,5]
[359413197,1745996961728,-400.0,0.00030136,5]
[359413198,1745996961751,-400.0,0.00030136,5]
[359413199,1745996961772,-400.0,0.00030136,5]
[359413200,1745996961795,-308.01074148,0.00030136,5]
[359413201,1745996961820,-400.0,0.00030136,5]
[359413202,1745996961843,-400.0,0.00030136,5]
[359413203,1745996961863,-182.81524743,0.00030136,5]
[359413204,1745996961883,-400.0,0.00030136,5]
[359413205,1745996961904,-400.0,0.00030136,5]
[359413206,1745996961925,-400.0,0.00030136,5]
[359413207,1745996961945,-400.0,0.00030136,5]
[359413208,1745996961966,-400.0,0.00030136,5]
[359413209,1745996961986,-400.0,0.00030136,5]
[359413210,1745996962008,-400.91610002,0.00030136,5]
[359413211,1745996962029,-400.0,0.00030136,5]
[359413212,1745996962053,-400.0,0.00030136,5]
[359413213,1745996962073,-400.0,0.00030136,5]
[359413214,1745996962227,-400.0,0.00030136,5]
[359413215,1745996962248,-400.0,0.00030136,5]
[359413216,1745996962269,-400.0,0.00030136,5]
[359413217,1745996962290,-400.0,0.00030136,5]
[359413218,1745996962313,-400.0,0.00030136,5]
[359413219,1745996962337,-400.0,0.00030136,5]
[359413220,1745996962359,-400.0,0.00030136,5]
[359413221,1745996962381,-400.0,0.00030136,5]
[359413222,1745996962406,-400.0,0.00030136,5]
[359413223,1745996962428,-400.0,0.00030136,5]
[359413224,1745996962451,-400.0,0.00030136,5]
[359413225,1745996962471,-400.0,0.00030136,5]
[359413226,1745996962494,-400.0,0.00030136,5]
[359413227,1745996962521,-782.24,0.00030136,5]
[359413228,1745996962545,-782.24,0.00030136,5]
[359413229,1745996962567,-782.24,0.00030136,5]
[359413230,1745996962590,-400.0,0.00030136,5]
[359413231,1745996962613,-400.0,0.00030136,5]
[359413232,1745996962635,-400.0,0.00030136,5]
[359413233,1745996962658,-400.0,0.00030136,5]
[359413234,1745996962679,-400.0,0.00030136,5]
[359413235,1745996962703,-400.0,0.00030136,5]
[359413236,1745996962725,-400.0,0.00030136,5]
[359413237,1745996962747,-400.0,0.00030136,5]
[359413238,1745996962769,-400.0,0.00030136,5]
[359413239,1745996962792,-400.0,0.00030136,5]
[359413240,1745996962813,-400.0,0.00030136,5]
[359413241,1745996962835,-400.0,0.00030136,5]
[359413242,1745996962855,-511.25423556,0.00030136,5]
[359413243,1745996962872,-400.0,0.00030136,5]
[359413244,1745996962888,-502.33157721,0.00030136,5]
[359413245,1745996962906,-490.89,0.00030136,5]
[359413246,1745996962923,-490.89,0.00030136,5]
[359413247,1745996962942,-490.89,0.00030136,5]
[359413248,1745996962963,-400.0,0.00030136,5]
[359413249,1745996962984,-504.93969994,0.00030136,5]
[359413250,1745996963004,-400.0,0.00030136,5]
[359413251,1745996963024,-400.0,0.00030136,5]
[359413252,1745996963045,-200.40939367,0.00030136,5]
[359413253,1745996963066,-400.0,0.00030136,5]
[359413254,1745996963087,-400.0,0.00030136,5]
[359413255,1745996963109,-479.94224737,0.00030136,5]
[359413256,1745996963130,-400.0,0.00030136,5]
[359413257,1745996963150,-400.0,0.00030136,5]
[359413258,1745996963171,-380.65564576,0.00030136,5]
[359413259,1745996963193,-400.0,0.00030136,5]
[359413260,1745996963214,-400.0,0.00030136,5]
[359413261,1745996963236,-201.90762135,0.00030136,5]
[359413262,1745996963260,-435.92,0.00030136,5]
[359413263,1745996963283,-435.92,0.00030136,5]
[359413264,1745996963308,-435.92,0.00030136,5]
[359413265,1745996963330,-400.0,0.00030136,5]
[359413266,1745996963352,-295.13939691,0.00030136,5]
[359413267,1745996963375,-400.0,0.00030136,5]
[359413268,1745996963400,-400.0,0.00030136,5]
[359413269,1745996963421,-400.0,0.00030136,5]
[359413270,1745996963442,-401.61536876,0.00030136,5]
[359413271,1745996963464,-500.0,0.00030136,30]
[359413272,1745996963484,-397.55272875,0.00030136,30]
[359413273,1745996963505,-500.71863601,0.00030136,5]
[359413274,1745996963527,-400.0,0.00030136,5]
[359413275,1745996963550,-400.0,0.00030136,5]
[359413276,1745996963570,-400.0,0.00030136,5]
[359413277,1745996963591,-400.0,0.00030136,5]
[359413278,1745996963612,-359.60589926,0.00030136,5]
[359413279,1745996963635,-400.0,0.00030136,5]
[359413280,1745996963657,-400.0,0.00030136,5]
[359413281,1745996963679,-400.0,0.00030136,5]
[359413282,1745996963700,-400.0,0.00030136,5]
[359413283,1745996963725,-422.57354578,0.00030136,5]
[359413284,1745996963745,-400.0,0.00030136,5]
[359413285,1745996963765,-400.0,0.00030136,5]
[359413286,1745996963785,-204.53791224,0.00030136,5]
[359413287,1745996963806,-400.0,0.00030136,5]
[359413288,1745996963827,-400.0,0.00030136,5]
[359413289,1745996963848,-400.0,0.00030136,5]
[359413290,1745996963869,-400.0,0.00030136,5]
[359413291,1745996963891,-507.66796083,0.00030136,5]
[359413292,1745996963913,-400.0,0.00030136,5]
[359413293,1745996963940,-400.0,0.00030136,5]
[359413294,1745996963961,-400.0,0.00030136,5]
[359413295,1745996963981,-418.19,0.00030136,5]
[359413296,1745996964001,-418.19,0.00030136,5]
[359413297,1745996964020,-418.19,0.00030136,5]
[359413298,1745996964044,-400.0,0.00030136,5]
[359413299,1745996964064,-400.0,0.00030136,5]
[359413300,1745996964085,-205.51268419,0.00030136,5]
[359413301,1745996964106,-503.62495168,0.00030136,5]
[359413302,1745996964127,-1337.57,0.00030136,5]
[359413303,1745996964147,-1337.57,0.00030136,5]
[359413304,1745996964168,-1337.57,0.00030136,5]
[359413305,1745996964188,-400.0,0.00030136,5]
[359413306,1745996964208,-279.38,0.00030136,5]
[359413307,1745996964230,-509.16546418,0.00030136,5]
[359413308,1745996964250,-339.01574218,0.00030136,5]
[359413309,1745996964270,-500.0,0.00030136,5]
[359413310,1745996964290,-400.0,0.00030136,5]
[359413311,1745996964310,-505.26764112,0.00030136,5]
[359413312,1745996964331,-400.0,0.00030136,5]
[359413313,1745996964351,-400.0,0.00030136,5]
[359413314,1745996964372,-512.50566395,0.00030136,5]
[359413315,1745996964392,-400.0,0.00030136,5]
[359413316,1745996964414,-400.0,0.00030136,5]
[359413317,1745996964434,-400.0,0.00030136,5]
[359413318,1745996964459,-500.0,0.00030136,5]
[359413319,1745996964484,-400.0,0.00030136,5]
[359413320,1745996964509,-501.19973974,0.00030136,5]
[359413321,1745996964534,-379.77267593,0.00030136,5]